[Event "Early-Titled-Tuesday-Blitz-February-27-2024"]
[Site "Chess.com"]
[Date "2024.02.27"]
[Round "10"]
[White "SuperBlitz2013"]
[Black "koncheto"]
[Result "1-0"]
[WhiteElo "2272"]
[BlackElo "2450"]
[TimeControl "180+1"]
[EndTime "9:54:31 PST"]
[Termination "SuperBlitz2013 won by resignation"]

1. e4 {[%clk 0:03:00.9]} 1... Nf6 {[%clk 0:02:56.1]} 2. e5 {[%clk 0:03:00.6]}
2... Nd5 {[%clk 0:02:54.5]} 3. d4 {[%clk 0:03:01.5]} 3... b5 {[%clk 0:02:51.2]}
4. c4 {[%clk 0:03:02.4]} 4... bxc4 {[%clk 0:02:48.7]} 5. Bxc4 {[%clk 0:02:59]}
5... e6 {[%clk 0:02:41.8]} 6. Nc3 {[%clk 0:02:56.1]} 6... Nxc3 {[%clk
0:02:22.9]} 7. bxc3 {[%clk 0:02:57]} 7... Bb7 {[%clk 0:02:23.4]} 8. Nf3 {[%clk
0:02:56.6]} 8... Be7 {[%clk 0:02:19]} 9. O-O {[%clk 0:02:56.2]} 9... O-O {[%clk
0:02:19.2]} 10. Re1 {[%clk 0:02:53.1]} 10... d6 {[%clk 0:02:09.3]} 11. Rb1
{[%clk 0:02:51.4]} 11... Bc6 {[%clk 0:01:40.4]} 12. Qe2 {[%clk 0:02:39.8]} 12...
Nd7 {[%clk 0:01:34]} 13. Bf4 {[%clk 0:02:29.3]} 13... Rb8 {[%clk 0:01:27]} 14.
Rxb8 {[%clk 0:01:57.7]} 14... Qxb8 {[%clk 0:01:23.9]} 15. h4 {[%clk 0:01:38.5]}
15... Qa8 {[%clk 0:01:16.9]} 16. Ng5 {[%clk 0:01:26.3]} 16... Bd5 {[%clk
0:01:08.4]} 17. Bd3 {[%clk 0:01:25.4]} 17... g6 {[%clk 0:00:55.7]} 18. Nxh7
{[%clk 0:01:10]} 18... Rb8 {[%clk 0:00:26.8]} 19. Ng5 {[%clk 0:00:36.9]} 19...
dxe5 {[%clk 0:00:14.4]} 20. dxe5 {[%clk 0:00:33.8]} 20... Nc5 {[%clk 0:00:14.7]}
21. h5 {[%clk 0:00:23.3]} 21... Nxd3 {[%clk 0:00:06]} 22. Qxd3 {[%clk
0:00:24.2]} 22... Bxg5 {[%clk 0:00:02.5]} 23. Bxg5 {[%clk 0:00:25.1]} 23... Kh7
{[%clk 0:00:03.2]} 24. hxg6+ {[%clk 0:00:24.9]} 24... fxg6 {[%clk 0:00:03.5]}
25. Qh3+ {[%clk 0:00:25.3]} 25... Kg7 {[%clk 0:00:03.9]} 26. Bf6+ {[%clk
0:00:25.4]} 26... Kf7 {[%clk 0:00:03.4]} 27. Qh7+ {[%clk 0:00:25.3]} 1-0

[Event "Early-Titled-Tuesday-Blitz-February-27-2024"]
[Site "Chess.com"]
[Date "2024.02.27"]
[Round "10"]
[White "kids2010"]
[Black "Statham_01"]
[Result "1-0"]
[WhiteElo "2870"]
[BlackElo "2567"]
[TimeControl "180+1"]
[EndTime "9:54:34 PST"]
[Termination "kids2010 won by checkmate"]

1. e4 {[%clk 0:02:58]} 1... e5 {[%clk 0:03:00.1]} 2. Nf3 {[%clk 0:02:56.7]} 2...
Nf6 {[%clk 0:03:00.6]} 3. Nxe5 {[%clk 0:02:49.8]} 3... Nc6 {[%clk 0:03:00.3]} 4.
Nxc6 {[%clk 0:02:46.2]} 4... dxc6 {[%clk 0:03:01.2]} 5. d3 {[%clk 0:02:35.3]}
5... Bc5 {[%clk 0:03:01.2]} 6. Be2 {[%clk 0:02:33.8]} 6... h5 {[%clk 0:03:00.5]}
7. Bg5 {[%clk 0:02:29.4]} 7... Qd4 {[%clk 0:02:40]} 8. Be3 {[%clk 0:02:03.4]}
8... Qxb2 {[%clk 0:02:37.8]} 9. Nd2 {[%clk 0:02:00.2]} 9... Bxe3 {[%clk
0:02:35.9]} 10. fxe3 {[%clk 0:02:01.1]} 10... Ng4 {[%clk 0:02:26.3]} 11. Bxg4
{[%clk 0:01:51.3]} 11... hxg4 {[%clk 0:02:16.1]} 12. Qc1 {[%clk 0:01:48.7]}
12... Qe5 {[%clk 0:02:13.2]} 13. d4 {[%clk 0:01:34.7]} 13... Qg5 {[%clk
0:01:59.7]} 14. Nf1 {[%clk 0:01:26.7]} 14... Qg6 {[%clk 0:01:50.6]} 15. Ng3
{[%clk 0:01:22.5]} 15... Be6 {[%clk 0:01:50.6]} 16. Qa3 {[%clk 0:01:13.7]} 16...
a6 {[%clk 0:01:42.3]} 17. O-O-O {[%clk 0:01:12.1]} 17... O-O-O {[%clk
0:01:39.8]} 18. Qc5 {[%clk 0:00:56]} 18... Kb8 {[%clk 0:01:29.4]} 19. d5 {[%clk
0:00:56]} 19... cxd5 {[%clk 0:01:27.5]} 20. exd5 {[%clk 0:00:56.9]} 20... Qg5
{[%clk 0:01:11.1]} 21. c4 {[%clk 0:00:41.5]} 21... Bd7 {[%clk 0:01:00.3]} 22.
Kd2 {[%clk 0:00:38.5]} 22... f5 {[%clk 0:00:55.5]} 23. Ne2 {[%clk 0:00:35.2]}
23... c6 {[%clk 0:00:43.2]} 24. Rb1 {[%clk 0:00:32.4]} 24... Bc8 {[%clk
0:00:12.8]} 25. Nd4 {[%clk 0:00:31.8]} 25... Ka8 {[%clk 0:00:07.4]} 26. Nxc6
{[%clk 0:00:29.3]} 26... bxc6 {[%clk 0:00:01.9]} 27. Qxc6+ {[%clk 0:00:30.2]}
27... Ka7 {[%clk 0:00:01.8]} 28. Qb6+ {[%clk 0:00:30.1]} 28... Ka8 {[%clk
0:00:02.4]} 29. Qb8# {[%clk 0:00:31]} 1-0

[Event "Early-Titled-Tuesday-Blitz-February-27-2024"]
[Site "Chess.com"]
[Date "2024.02.27"]
[Round "10"]
[White "RantomOpening"]
[Black "Kotofeyca"]
[Result "0-1"]
[WhiteElo "2559"]
[BlackElo "2445"]
[TimeControl "180+1"]
[EndTime "9:54:36 PST"]
[Termination "Kotofeyca won by checkmate"]

1. c4 {[%clk 0:02:22.2]} 1... c6 {[%clk 0:02:49.4]} 2. Nf3 {[%clk 0:02:22.2]}
2... d5 {[%clk 0:02:49.6]} 3. e3 {[%clk 0:02:22.6]} 3... Nf6 {[%clk 0:02:49.5]}
4. Nc3 {[%clk 0:02:22.8]} 4... a6 {[%clk 0:02:49.6]} 5. h3 {[%clk 0:02:19.6]}
5... Bf5 {[%clk 0:02:49.1]} 6. cxd5 {[%clk 0:02:18.8]} 6... cxd5 {[%clk
0:02:48.3]} 7. Qb3 {[%clk 0:02:18.9]} 7... Bc8 {[%clk 0:02:45.4]} 8. d4 {[%clk
0:02:18.1]} 8... Nc6 {[%clk 0:02:44.8]} 9. Ne5 {[%clk 0:02:18.3]} 9... Na5
{[%clk 0:02:23.7]} 10. Qa4+ {[%clk 0:01:47.5]} 10... b5 {[%clk 0:02:22.7]} 11.
Nxb5 {[%clk 0:01:40.4]} 11... axb5 {[%clk 0:02:18.2]} 12. Bxb5+ {[%clk
0:01:40.1]} 12... Bd7 {[%clk 0:02:09.9]} 13. Nxd7 {[%clk 0:01:39.3]} 13... Nxd7
{[%clk 0:02:08.9]} 14. b4 {[%clk 0:01:39.3]} 14... Nc6 {[%clk 0:01:58.2]} 15.
Bxc6 {[%clk 0:01:27.6]} 15... Rxa4 {[%clk 0:01:57.6]} 16. Bxa4 {[%clk
0:01:28.5]} 16... e6 {[%clk 0:01:54.1]} 17. Bd2 {[%clk 0:01:27.9]} 17... Qb8
{[%clk 0:01:45.2]} 18. Rb1 {[%clk 0:01:22.5]} 18... Bd6 {[%clk 0:01:44.8]} 19.
O-O {[%clk 0:01:21.5]} 19... Ke7 {[%clk 0:01:45]} 20. Rfc1 {[%clk 0:01:19.9]}
20... Rc8 {[%clk 0:01:42.9]} 21. Bc6 {[%clk 0:01:20]} 21... Qb6 {[%clk
0:01:22.7]} 22. b5 {[%clk 0:01:17.7]} 22... Nb8 {[%clk 0:01:19]} 23. a4 {[%clk
0:01:13.2]} 23... Ba3 {[%clk 0:01:04.9]} 24. a5 {[%clk 0:01:08.7]} 24... Qd8
{[%clk 0:00:54.4]} 25. Rc2 {[%clk 0:00:50.7]} 25... Nxc6 {[%clk 0:00:45.8]} 26.
bxc6 {[%clk 0:00:51.6]} 26... Bd6 {[%clk 0:00:38.7]} 27. Rb7+ {[%clk 0:00:51.1]}
27... Kf6 {[%clk 0:00:36.8]} 28. a6 {[%clk 0:00:48.4]} 28... Rc7 {[%clk
0:00:27.5]} 29. a7 {[%clk 0:00:47.5]} 29... Qa8 {[%clk 0:00:27.6]} 30. Ra2
{[%clk 0:00:46.9]} 30... Rxc6 {[%clk 0:00:24.8]} 31. Bb4 {[%clk 0:00:41.9]}
31... Rc1+ {[%clk 0:00:17.3]} 32. Be1 {[%clk 0:00:21.2]} 32... Rxe1# {[%clk
0:00:18.2]} 0-1

[Event "Early-Titled-Tuesday-Blitz-February-27-2024"]
[Site "Chess.com"]
[Date "2024.02.27"]
[Round "10"]
[White "publicaccountcze"]
[Black "PavelChernomordik"]
[Result "0-1"]
[WhiteElo "2220"]
[BlackElo "2392"]
[TimeControl "180+1"]
[EndTime "9:54:50 PST"]
[Termination "PavelChernomordik won on time"]

1. e4 {[%clk 0:02:54.5]} 1... g6 {[%clk 0:03:00.9]} 2. d4 {[%clk 0:02:54.3]}
2... Bg7 {[%clk 0:03:00.7]} 3. f4 {[%clk 0:02:54.9]} 3... d6 {[%clk 0:03:00.4]}
4. Nf3 {[%clk 0:02:53.6]} 4... c5 {[%clk 0:03:00.3]} 5. c3 {[%clk 0:02:49.7]}
5... cxd4 {[%clk 0:02:58.8]} 6. cxd4 {[%clk 0:02:50.6]} 6... Bg4 {[%clk
0:02:58.3]} 7. Nc3 {[%clk 0:02:48.6]} 7... Bxf3 {[%clk 0:02:57.4]} 8. gxf3
{[%clk 0:02:46.5]} 8... e6 {[%clk 0:02:56.9]} 9. Qa4+ {[%clk 0:02:20.7]} 9...
Nd7 {[%clk 0:02:56]} 10. Bb5 {[%clk 0:01:41.4]} 10... a6 {[%clk 0:02:50.9]} 11.
Bxd7+ {[%clk 0:01:39.3]} 11... Qxd7 {[%clk 0:02:50.9]} 12. Qxd7+ {[%clk
0:01:39.9]} 12... Kxd7 {[%clk 0:02:50.8]} 13. Be3 {[%clk 0:01:40.4]} 13... Ne7
{[%clk 0:02:47.9]} 14. O-O-O {[%clk 0:01:32.3]} 14... Rhc8 {[%clk 0:02:45.4]}
15. Kb1 {[%clk 0:01:32.9]} 15... b5 {[%clk 0:02:45.2]} 16. h4 {[%clk 0:01:16.7]}
16... h5 {[%clk 0:02:44.4]} 17. Rh2 {[%clk 0:01:00.8]} 17... Rc4 {[%clk
0:02:42.5]} 18. Rc2 {[%clk 0:00:55.5]} 18... Rac8 {[%clk 0:02:41.2]} 19. Rd3
{[%clk 0:00:48.1]} 19... Bf6 {[%clk 0:02:33.6]} 20. e5 {[%clk 0:00:48.1]} 20...
Bxh4 {[%clk 0:02:27.6]} 21. exd6 {[%clk 0:00:48.3]} 21... Nf5 {[%clk 0:02:24.5]}
22. b3 {[%clk 0:00:27]} 22... Nxe3 {[%clk 0:01:58.9]} 23. Rxe3 {[%clk
0:00:26.7]} 23... Rxd4 {[%clk 0:01:58.5]} 24. Ne4 {[%clk 0:00:25.2]} 24... Rxc2
{[%clk 0:01:48]} 25. Kxc2 {[%clk 0:00:26.1]} 25... Bd8 {[%clk 0:01:40]} 26. Kc3
{[%clk 0:00:15.1]} 26... Bb6 {[%clk 0:01:39.2]} 27. Rd3 {[%clk 0:00:10.9]} 27...
Rxd3+ {[%clk 0:01:30.2]} 28. Kxd3 {[%clk 0:00:11.8]} 28... f5 {[%clk 0:01:27.8]}
29. Nf6+ {[%clk 0:00:03]} 29... Kxd6 {[%clk 0:01:27.6]} 30. Nh7 {[%clk
0:00:02.1]} 30... Ke7 {[%clk 0:01:23.7]} 31. Ng5 {[%clk 0:00:01.7]} 31... h4
{[%clk 0:01:20.6]} 32. a4 {[%clk 0:00:02.2]} 32... Bc7 {[%clk 0:01:16.9]} 33.
Ke3 {[%clk 0:00:02]} 33... Kd6 {[%clk 0:01:13.8]} 34. axb5 {[%clk 0:00:02]}
34... axb5 {[%clk 0:01:13.6]} 35. Kf2 {[%clk 0:00:02.2]} 35... Kd5 {[%clk
0:01:12.8]} 36. Kg2 {[%clk 0:00:02.5]} 36... Bxf4 {[%clk 0:01:11.7]} 37. Nf7
{[%clk 0:00:03.1]} 37... e5 {[%clk 0:01:04]} 38. Kh3 {[%clk 0:00:03.4]} 38... g5
{[%clk 0:01:03.3]} 39. b4 {[%clk 0:00:02.3]} 39... e4 {[%clk 0:01:00.7]} 40. Nh6
{[%clk 0:00:01.8]} 40... Ke6 {[%clk 0:00:58.6]} 41. Ng8 {[%clk 0:00:01.6]} 41...
exf3 {[%clk 0:00:57.6]} 42. Nf6 {[%clk 0:00:01.9]} 42... g4+ {[%clk 0:00:55.5]}
0-1

[Event "Early-Titled-Tuesday-Blitz-February-27-2024"]
[Site "Chess.com"]
[Date "2024.02.27"]
[Round "10"]
[White "azikom"]
[Black "Brahianzevich"]
[Result "1-0"]
[WhiteElo "2617"]
[BlackElo "2497"]
[TimeControl "180+1"]
[EndTime "9:54:51 PST"]
[Termination "azikom won on time"]

1. d4 {[%clk 0:02:59.1]} 1... d5 {[%clk 0:02:55.3]} 2. Nf3 {[%clk 0:02:58]} 2...
e6 {[%clk 0:02:55.6]} 3. Bf4 {[%clk 0:02:58.3]} 3... Nf6 {[%clk 0:02:55]} 4. e3
{[%clk 0:02:58]} 4... c5 {[%clk 0:02:55.6]} 5. Nbd2 {[%clk 0:02:57]} 5... Nc6
{[%clk 0:02:55.3]} 6. c3 {[%clk 0:02:55.2]} 6... Bd6 {[%clk 0:02:55.8]} 7. Bg3
{[%clk 0:02:54.9]} 7... O-O {[%clk 0:02:50.7]} 8. Ne5 {[%clk 0:02:53.9]} 8...
Ne7 {[%clk 0:02:43.1]} 9. Bd3 {[%clk 0:02:51.2]} 9... b6 {[%clk 0:02:42.6]} 10.
O-O {[%clk 0:02:47.6]} 10... Bb7 {[%clk 0:02:42.3]} 11. h3 {[%clk 0:02:47.1]}
11... Nf5 {[%clk 0:02:35.8]} 12. Bxf5 {[%clk 0:02:44.4]} 12... exf5 {[%clk
0:02:35.7]} 13. Bh4 {[%clk 0:02:27.8]} 13... Be7 {[%clk 0:02:34.7]} 14. Re1
{[%clk 0:02:22.3]} 14... Ne4 {[%clk 0:02:32.7]} 15. Bxe7 {[%clk 0:02:21.2]}
15... Qxe7 {[%clk 0:02:33.6]} 16. Nf1 {[%clk 0:02:19.6]} 16... Rfe8 {[%clk
0:02:08.9]} 17. Nd3 {[%clk 0:02:18.4]} 17... Qh4 {[%clk 0:02:01.8]} 18. Qf3
{[%clk 0:02:14.6]} 18... Ba6 {[%clk 0:01:53.9]} 19. Rad1 {[%clk 0:02:10.8]}
19... g6 {[%clk 0:01:46.8]} 20. dxc5 {[%clk 0:01:59.6]} 20... bxc5 {[%clk
0:01:42.7]} 21. Nf4 {[%clk 0:01:59.4]} 21... Rad8 {[%clk 0:01:17.8]} 22. Nxd5
{[%clk 0:01:55.8]} 22... Bc4 {[%clk 0:00:52.3]} 23. Qf4 {[%clk 0:01:36]} 23...
Qxf4 {[%clk 0:00:39.3]} 24. Nxf4 {[%clk 0:01:35.3]} 24... Bxa2 {[%clk
0:00:38.5]} 25. Ra1 {[%clk 0:01:35]} 25... Bc4 {[%clk 0:00:34.7]} 26. Rxa7
{[%clk 0:01:32]} 26... Rb8 {[%clk 0:00:34.7]} 27. f3 {[%clk 0:01:28.2]} 27...
Bxf1 {[%clk 0:00:32.9]} 28. fxe4 {[%clk 0:01:18]} 28... Bc4 {[%clk 0:00:30.3]}
29. exf5 {[%clk 0:01:08.2]} 29... Rxb2 {[%clk 0:00:30]} 30. Rc7 {[%clk
0:01:01.5]} 30... Re5 {[%clk 0:00:22]} 31. f6 {[%clk 0:00:59.6]} 31... h5 {[%clk
0:00:15.6]} 32. Rd1 {[%clk 0:00:45]} 32... Rxe3 {[%clk 0:00:11.5]} 33. Nxg6
{[%clk 0:00:40.2]} 33... Rg3 {[%clk 0:00:07.4]} 34. Nf4 {[%clk 0:00:38.6]} 34...
Kh7 {[%clk 0:00:06.4]} 35. Rxc5 {[%clk 0:00:38]} 35... Ba6 {[%clk 0:00:05.7]}
36. Rxh5+ {[%clk 0:00:37.7]} 1-0

[Event "Early-Titled-Tuesday-Blitz-February-27-2024"]
[Site "Chess.com"]
[Date "2024.02.27"]
[Round "10"]
[White "MessiKingdom"]
[Black "GHANDEEVAM2003"]
[Result "0-1"]
[WhiteElo "2678"]
[BlackElo "3050"]
[TimeControl "180+1"]
[EndTime "9:54:55 PST"]
[Termination "GHANDEEVAM2003 won on time"]

1. d4 {[%clk 0:03:00.9]} 1... e6 {[%clk 0:02:59.8]} 2. Bf4 {[%clk 0:02:59.9]}
2... c5 {[%clk 0:02:59.6]} 3. e3 {[%clk 0:03:00.3]} 3... cxd4 {[%clk 0:02:58.1]}
4. exd4 {[%clk 0:03:00.6]} 4... Qb6 {[%clk 0:02:58.4]} 5. Nc3 {[%clk 0:02:12.6]}
5... Nf6 {[%clk 0:02:57.5]} 6. Nf3 {[%clk 0:02:12.1]} 6... Nc6 {[%clk
0:02:31.1]} 7. Be2 {[%clk 0:01:49.9]} 7... Bb4 {[%clk 0:02:19]} 8. O-O {[%clk
0:01:48.8]} 8... O-O {[%clk 0:02:16.8]} 9. Nb5 {[%clk 0:01:21.8]} 9... Nd5
{[%clk 0:02:16.6]} 10. Bg3 {[%clk 0:01:22.5]} 10... a6 {[%clk 0:02:11.6]} 11.
Nd6 {[%clk 0:01:15.3]} 11... Bxd6 {[%clk 0:01:55.5]} 12. Bxd6 {[%clk 0:01:16.2]}
12... Re8 {[%clk 0:01:56.4]} 13. Ba3 {[%clk 0:01:15.5]} 13... Nf6 {[%clk
0:01:55]} 14. c3 {[%clk 0:01:13.6]} 14... d5 {[%clk 0:01:51]} 15. Ne5 {[%clk
0:01:10.5]} 15... Qc7 {[%clk 0:01:46.2]} 16. f4 {[%clk 0:01:09.4]} 16... Ne4
{[%clk 0:01:46.4]} 17. Bf3 {[%clk 0:01:07.2]} 17... f6 {[%clk 0:01:45.1]} 18.
Nxc6 {[%clk 0:01:05.7]} 18... Qxc6 {[%clk 0:01:44]} 19. Qe2 {[%clk 0:00:56.2]}
19... b5 {[%clk 0:01:40.7]} 20. Rae1 {[%clk 0:00:18.4]} 20... Bb7 {[%clk
0:01:40.7]} 21. g4 {[%clk 0:00:17.4]} 21... a5 {[%clk 0:01:40.2]} 22. Qe3 {[%clk
0:00:14.8]} 22... Qc4 {[%clk 0:01:33.3]} 23. Bc5 {[%clk 0:00:08.9]} 23... Qxa2
{[%clk 0:01:29.4]} 24. Re2 {[%clk 0:00:06.7]} 24... b4 {[%clk 0:01:27.2]} 25.
cxb4 {[%clk 0:00:06.1]} 25... Ba6 {[%clk 0:01:27.6]} 26. Bxe4 {[%clk 0:00:05]}
26... dxe4 {[%clk 0:01:28.5]} 27. Qxe4 {[%clk 0:00:05.5]} 27... Bxe2 {[%clk
0:01:25.3]} 28. Qxe2 {[%clk 0:00:06.4]} 28... axb4 {[%clk 0:01:25]} 29. Bxb4
{[%clk 0:00:07.3]} 29... Rab8 {[%clk 0:01:23.8]} 30. Bc3 {[%clk 0:00:07.7]}
30... Qd5 {[%clk 0:01:22.8]} 31. Re1 {[%clk 0:00:08.1]} 31... Rb5 {[%clk
0:01:19.5]} 32. Qf2 {[%clk 0:00:08.5]} 32... h5 {[%clk 0:01:19]} 33. h3 {[%clk
0:00:07.6]} 33... Kf7 {[%clk 0:01:18.7]} 34. Kh2 {[%clk 0:00:07.1]} 34... hxg4
{[%clk 0:01:17.8]} 35. hxg4 {[%clk 0:00:07.8]} 35... Rh8+ {[%clk 0:01:18.6]} 36.
Kg3 {[%clk 0:00:08.5]} 36... Rbb8 {[%clk 0:01:13.3]} 37. Qg2 {[%clk 0:00:07.9]}
37... Qd6 {[%clk 0:01:10.3]} 38. Rh1 {[%clk 0:00:06.9]} 38... g5 {[%clk
0:01:00.5]} 39. Bd2 {[%clk 0:00:02.5]} 39... Rb3+ {[%clk 0:00:59.7]} 40. Kf2
{[%clk 0:00:02.4]} 40... Qxd4+ {[%clk 0:00:59.1]} 41. Ke2 {[%clk 0:00:03.1]}
41... Rxb2 {[%clk 0:00:54.7]} 0-1

[Event "Early-Titled-Tuesday-Blitz-February-27-2024"]
[Site "Chess.com"]
[Date "2024.02.27"]
[Round "10"]
[White "Ariadna_Atreides"]
[Black "HelvertHernandez"]
[Result "1-0"]
[WhiteElo "2191"]
[BlackElo "2004"]
[TimeControl "180+1"]
[EndTime "9:54:59 PST"]
[Termination "Ariadna_Atreides won on time"]

1. d4 {[%clk 0:02:43.5]} 1... Nf6 {[%clk 0:02:57.5]} 2. Nf3 {[%clk 0:02:44]}
2... b6 {[%clk 0:02:56.5]} 3. e3 {[%clk 0:02:43.3]} 3... Bb7 {[%clk 0:02:56.2]}
4. Bd3 {[%clk 0:02:44]} 4... d6 {[%clk 0:02:56.9]} 5. O-O {[%clk 0:02:44.6]}
5... Nbd7 {[%clk 0:02:57.1]} 6. Nbd2 {[%clk 0:02:45.2]} 6... e5 {[%clk
0:02:57.4]} 7. dxe5 {[%clk 0:02:44.1]} 7... dxe5 {[%clk 0:02:56.8]} 8. e4 {[%clk
0:02:40.8]} 8... Bd6 {[%clk 0:02:43.4]} 9. b3 {[%clk 0:02:38.6]} 9... O-O {[%clk
0:02:43.1]} 10. Bb2 {[%clk 0:02:39.1]} 10... Re8 {[%clk 0:02:43.8]} 11. Nc4
{[%clk 0:02:38.7]} 11... Nxe4 {[%clk 0:02:33.5]} 12. Re1 {[%clk 0:02:34.8]}
12... f5 {[%clk 0:02:31.2]} 13. Nxd6 {[%clk 0:02:26.7]} 13... cxd6 {[%clk
0:02:28.3]} 14. Bc4+ {[%clk 0:02:25.8]} 14... Kh8 {[%clk 0:02:24.5]} 15. Bd5
{[%clk 0:02:26.2]} 15... Bxd5 {[%clk 0:02:21]} 16. Qxd5 {[%clk 0:02:27.1]} 16...
Ndf6 {[%clk 0:02:21.2]} 17. Qd1 {[%clk 0:02:14.9]} 17... Qc7 {[%clk 0:02:15.7]}
18. c4 {[%clk 0:02:14.2]} 18... Rad8 {[%clk 0:02:14.6]} 19. Qe2 {[%clk
0:02:12.3]} 19... d5 {[%clk 0:02:11.5]} 20. cxd5 {[%clk 0:02:09.2]} 20... Nxd5
{[%clk 0:02:12.1]} 21. Rac1 {[%clk 0:01:59]} 21... Qb8 {[%clk 0:02:12]} 22. Red1
{[%clk 0:01:48.6]} 22... Nf4 {[%clk 0:02:09.9]} 23. Qe3 {[%clk 0:01:41.3]} 23...
Nd5 {[%clk 0:01:52.4]} 24. Qe2 {[%clk 0:01:33.1]} 24... h6 {[%clk 0:01:41.4]}
25. g3 {[%clk 0:01:24.8]} 25... Ndc3 {[%clk 0:01:34.5]} 26. Bxc3 {[%clk
0:01:22.4]} 26... Nxc3 {[%clk 0:01:34.1]} 27. Rxc3 {[%clk 0:01:21.3]} 27... e4
{[%clk 0:01:27]} 28. Nh4 {[%clk 0:01:18.9]} 28... g5 {[%clk 0:01:10.5]} 29. Nxf5
{[%clk 0:00:59.6]} 29... Qe5 {[%clk 0:01:07.1]} 30. Rxd8 {[%clk 0:00:55.1]}
30... Rxd8 {[%clk 0:01:06.8]} 31. Qb2 {[%clk 0:00:45.8]} 31... Rd1+ {[%clk
0:00:26.7]} 32. Kg2 {[%clk 0:00:44.3]} 32... Kh7 {[%clk 0:00:21.2]} 33. Ne3
{[%clk 0:00:37.7]} 33... Re1 {[%clk 0:00:16.3]} 34. Rc2 {[%clk 0:00:34.6]} 34...
Qe7 {[%clk 0:00:10.4]} 35. Nd5 {[%clk 0:00:31]} 35... Qf7 {[%clk 0:00:08.6]} 36.
Rc7 {[%clk 0:00:29.1]} 36... Kg6 {[%clk 0:00:02.7]} 37. Rxf7 {[%clk 0:00:28.3]}
37... Kxf7 {[%clk 0:00:03.4]} 38. Qf6+ {[%clk 0:00:28.6]} 1-0

[Event "Early-Titled-Tuesday-Blitz-February-27-2024"]
[Site "Chess.com"]
[Date "2024.02.27"]
[Round "10"]
[White "bescmelasti"]
[Black "Eagle_2019"]
[Result "0-1"]
[WhiteElo "2644"]
[BlackElo "2876"]
[TimeControl "180+1"]
[EndTime "9:55:03 PST"]
[Termination "Eagle_2019 won by resignation"]

1. e4 {[%clk 0:03:00.9]} 1... a6 {[%clk 0:02:58.7]} 2. d4 {[%clk 0:03:00.6]}
2... e6 {[%clk 0:02:58.5]} 3. Nf3 {[%clk 0:03:01.1]} 3... c5 {[%clk 0:02:58.4]}
4. d5 {[%clk 0:03:00.5]} 4... Nf6 {[%clk 0:02:32.5]} 5. Nc3 {[%clk 0:02:59.3]}
5... b5 {[%clk 0:02:30.3]} 6. dxe6 {[%clk 0:02:29.4]} 6... dxe6 {[%clk 0:02:24]}
7. Qxd8+ {[%clk 0:02:30.3]} 7... Kxd8 {[%clk 0:02:24]} 8. Bg5 {[%clk 0:02:30.6]}
8... Be7 {[%clk 0:02:18.4]} 9. Ne5 {[%clk 0:02:18.3]} 9... Ke8 {[%clk
0:02:13.5]} 10. O-O-O {[%clk 0:02:13.1]} 10... Nfd7 {[%clk 0:02:02.8]} 11. Bxe7
{[%clk 0:02:00.9]} 11... Kxe7 {[%clk 0:02:03.7]} 12. Nxd7 {[%clk 0:01:54]} 12...
Nxd7 {[%clk 0:02:03.3]} 13. f3 {[%clk 0:01:28.6]} 13... Ne5 {[%clk 0:01:52.9]}
14. Be2 {[%clk 0:01:26.3]} 14... Bb7 {[%clk 0:01:47.1]} 15. h4 {[%clk
0:01:16.4]} 15... Rhd8 {[%clk 0:01:38.4]} 16. Rxd8 {[%clk 0:01:14]} 16... Rxd8
{[%clk 0:01:38.1]} 17. Rd1 {[%clk 0:01:14.9]} 17... Rc8 {[%clk 0:01:33]} 18. b3
{[%clk 0:01:07.2]} 18... Nc6 {[%clk 0:01:30.3]} 19. Bf1 {[%clk 0:01:00.4]} 19...
Nd4 {[%clk 0:01:26.7]} 20. Kb2 {[%clk 0:00:55.3]} 20... f5 {[%clk 0:01:23]} 21.
exf5 {[%clk 0:00:48.3]} 21... exf5 {[%clk 0:01:22.3]} 22. Ne2 {[%clk 0:00:41.9]}
22... Ne6 {[%clk 0:01:20.3]} 23. f4 {[%clk 0:00:24.2]} 23... c4 {[%clk
0:01:17.5]} 24. g3 {[%clk 0:00:23.1]} 24... Bf3 {[%clk 0:01:13.7]} 25. Re1
{[%clk 0:00:21.6]} 25... Kf6 {[%clk 0:01:11.6]} 26. c3 {[%clk 0:00:19.1]} 26...
Nc5 {[%clk 0:01:06.7]} 27. Nd4 {[%clk 0:00:17]} 27... Be4 {[%clk 0:01:03.7]} 28.
bxc4 {[%clk 0:00:10.1]} 28... Na4+ {[%clk 0:01:00.3]} 29. Kb3 {[%clk 0:00:10.1]}
29... Nc5+ {[%clk 0:00:58.8]} 30. Kb2 {[%clk 0:00:10.4]} 30... bxc4 {[%clk
0:00:51.1]} 31. Bxc4 {[%clk 0:00:11.3]} 31... Bd3 {[%clk 0:00:51.5]} 32. Bb3
{[%clk 0:00:08.1]} 32... Be4 {[%clk 0:00:48.9]} 33. Bc2 {[%clk 0:00:03.3]} 33...
Rb8+ {[%clk 0:00:46.4]} 34. Kc1 {[%clk 0:00:03.4]} 34... h6 {[%clk 0:00:44.1]}
35. Nb3 {[%clk 0:00:01.8]} 35... Na4 {[%clk 0:00:41.9]} 36. Bxe4 {[%clk
0:00:01.7]} 36... fxe4 {[%clk 0:00:40.7]} 37. Rxe4 {[%clk 0:00:02]} 37... Nxc3
{[%clk 0:00:38.7]} 38. Rc4 {[%clk 0:00:02.6]} 38... Nxa2+ {[%clk 0:00:35.6]} 39.
Kb2 {[%clk 0:00:03.2]} 39... Nb4 {[%clk 0:00:36.5]} 40. Rc5 {[%clk 0:00:02.4]}
40... Nd3+ {[%clk 0:00:35.3]} 41. Kc3 {[%clk 0:00:02.9]} 41... Nxc5 {[%clk
0:00:35.4]} 0-1